Cogmind - Beta 15 @@@ ROGUE MODE // 2025.07.25 @ 13:16:19 Player: AussieBBQ Result: Self-destructed Performance ------------- Evolutions (1) 500 Regions Visited (3) 600 Robots Destroyed (69) 345 Value Destroyed (1594) 1594 Prototype IDs (3) 60 Alien Tech Used (0) 0 Bonus (73) 73 TOTAL SCORE: 3172 Bonus ------- High Alert Combat Kills 73 Cogmind --------- Core Integrity 305/400 Matter 300/300 Energy 125/125 System Corruption 0% Temperature Cool (0) Movement Walking (120) Location -9/Materials Parts ------- > --- POWER (1) -------- Light Ion Engine > --- PROPULSION (4) --- Aluminum Leg Aluminum Leg Aluminum Leg Aluminum Leg > --- UTILITY (2) ------ Large Storage Unit Improved Light Armor Plating > --- WEAPON (2) ------- Improved EM Shotgun Improved Medium Laser > --- INVENTORY (15) --- Ion Engine Light Nuclear Core Aluminum Leg Aluminum Leg Aluminum Leg Sensor Array Improved Terrain Scanner Bomb Drone Bay Beam Rifle Improved Medium Laser Improved Assault Rifle Grenade Launcher Grenade Launcher Makeshift Hammer Peak State ------------ > --- POWER ------------ Light Ion Engine > --- PROPULSION ------- Aluminum Leg Aluminum Leg Aluminum Leg Aluminum Leg > --- UTILITY ---------- Large Storage Unit Improved Terrain Scanner > --- WEAPON ----------- Improved Assault Rifle Makeshift Hammer > --- INVENTORY -------- Light Ion Engine Aluminum Leg Aluminum Leg Aluminum Leg Sensor Array Signal Interpreter Bomb Drone Bay Particle Gun Particle Gun Particle Gun Particle Gun Light Assault Rifle Grenade Launcher Grenade Launcher [Rating: 19] Favorites ----------- Power Light Ion Engine Engine Light Ion Engine Propulsion Aluminum Leg Leg Aluminum Leg Utility Large Storage Unit Device Improved Terrain Scanner Storage Large Storage Unit Processor Improved Signal Interpreter Protection Improved Light Armor Plating Weapon Assault Rifle Energy Gun Particle Gun Ballistic Gun Assault Rifle Launcher Grenade Launcher Impact Weapon Makeshift Hammer Build | -11 -10 -10 -9 ------- Run | Yrd Mat Min Mat Slots Evolved 2 | . . . 2 Power . | . . . . Propulsion 2 | . . . 2 Utility . | . . . . Weapon . | . . . . Parts Attached 41 | 6 12 7 16 Power 4 | 1 1 1 1 Engine 4 | 1 1 1 1 Core . | . . . . Reactor . | . . . . Propulsion 11 | 2 2 2 5 Treads . | . . . . Leg 11 | 2 2 2 5 Wheel . | . . . . Hover . | . . . . Flight . | . . . . Utility 9 | 1 4 1 3 Device 4 | . 2 1 1 Storage 2 | 1 1 . . Processor 1 | . . . 1 Hackware . | . . . . Protection 2 | . 1 . 1 Artifact . | . . . . Weapon 17 | 2 5 3 7 Energy Gun 8 | 1 1 . 6 Energy Cannon . | . . . . Ballistic Gun 5 | 1 2 1 1 Ballistic Cannon . | . . . . Launcher 3 | . 2 1 . Special Weapon . | . . . . Impact Weapon 1 | . . 1 . Slashing Weapon . | . . . . Piercing Weapon . | . . . . Special Melee Weapon . | . . . . Unidentified Prototypes 3 | . . . 3 Parts Lost 6 | . . 2 4 Power 1 | . . . 1 Propulsion 2 | . . . 2 Utility 1 | . . 1 . Weapon 2 | . . 1 1 Highest Loss Streak 2 | . . 1 2 To Critical Strikes . | . . . . Average Backups 12 | 2 7 13 13 Power 2 | . 1 3 1 Propulsion 4 | 1 3 5 2 Utility 1 | . . . 3 Weapon 4 | . 2 4 6 Tool/Special . | . . . . Unused Backups 32 | . 7 4 21 Power 7 | . 1 2 4 Propulsion 16 | . 5 1 10 Utility 3 | . . . 3 Weapon 6 | . 1 1 4 Tool/Special . | . . . . Average Slot Usage (%) 99 | . 98 99 98 Engine 13 | . 14 14 10 Leg 32 | . 28 28 43 Device 9 | . 12 10 5 Storage 15 | . 14 17 11 Energy Gun 8 | . 10 4 14 Ballistic Gun 15 | . 11 22 5 Launcher 1 | . 6 . . Peak Build Rating 19 | 6 8 14 19 Average Rating 11 | 4 7 10 17 On Entrance 6 | . 6 8 12 Naked Turns . | . . . . Heaviest Build 33 | 11 33 33 32 Greatest Support 40 | 20 20 20 40 Greatest Overweight (x) 1 | . 1 1 1 Average Overweight (x) . | . . 1 . Largest Inventory Capacity 15 | 8 15 15 15 Average Capacity 13 | 7 8 15 15 Most Carried 15 | 6 9 15 15 Average Carried 12 | 2 7 13 14 Final Capacity 15 | 8 15 15 15 Final Carried 15 | 6 9 15 15 Class Distribution -------------------- 74% | Mutant 25% | Scavenger-Mutant Dominant Class ---------------- Mutant | -10/Materials Mutant | -10/Mines Scavenger-Mutant | -9/Materials Resources | -11 -10 -10 -9 ----------- Run | Yrd Mat Min Mat Matter Collected 1732 | 244 245 629 614 Remotely 10 | . 10 . . Salvage Created 1788 | . 266 378 1144 Parts 125 | . 19 34 72 Haulers Intercepted 2 | . . . 2 Recyclers Shooed . | . . . . Parts Field Recycled . | . . . . Retrieved Matter . | . . . . Parts Self-Destructed . | . . . . Prevented . | . . . . Kills | -11 -10 -10 -9 ------- Run | Yrd Mat Min Mat Combat Hostiles Destroyed 56 | . 11 17 28 Guns 33 | . 5 14 14 AOE 22 | . 6 3 13 Classes Destroyed 12 | . 2 3 7 Worker 5 | . . 3 2 Builder 1 | . . . 1 Tunneler 2 | . . 2 . Hauler 2 | . . . 2 Recycler 1 | . . . 1 Operator 1 | . . . 1 Watcher 2 | . . . 2 Swarmer 22 | . 3 12 7 Grunt 27 | . 8 4 15 Duelist 1 | . . . 1 Sentry 5 | . . . 5 Assembled 1 | . . 1 . Best Kill Streak 9 | . 3 3 9 Combat Bots Only 8 | . 3 3 8 Max Kills in Single Turn 3 | . 3 2 2 Gunslinging . | . . . . Exploded 3 | . 3 2 2 Melee . | . . . . Uniques/NPCs Destroyed . | . . . . Combat | -11 -10 -10 -9 -------- Run | Yrd Mat Min Mat Hostile Shots Fired 206 | . 54 59 93 Missed 75 | . 17 18 40 Hits 131 | . 37 41 53 Melee 3 | . . . 3 Projectile 128 | . 37 41 50 Critical Strikes 5 | . 1 . 4 Damage Taken 1627 | . 451 451 725 Core 290 | . 93 102 95 Absorbed by Shields . | . . . . Core Remaining (%) 61 | 100 . 22 . Volleys Fired 166 | . 33 57 76 Largest 2 | . 2 2 2 Hottest 121 | . 60 95 121 Shots Fired 290 | . 54 102 134 Gun 255 | . 42 95 118 Cannon . | . . . . Launcher 35 | . 12 7 16 Special . | . . . . Kinetic 155 | . 41 71 43 Thermal 88 | . . 24 64 Explosive 35 | . 12 7 16 Electromagnetic 12 | . 1 . 11 Robot Hit Streak 28 | . 24 28 16 Robot Miss Streak 3 | . 2 3 3 Penetration Max . | . . . . Secondary Targets 2 | . . . 2 Max Gunslinging Chain 1 | . . . 1 Shots Hit Robots 182 | . 39 52 91 Core Hits 97 | . 17 26 54 Critical Kills . | . . . . Critical Parts Destroyed 1 | . . . 1 Critical Strikes 4 | . . . 4 Burn 3 | . . . 3 Destroy 1 | . . . 1 Melee Attacks 5 | . . 2 3 Impact 5 | . . 2 3 Slashing . | . . . . Piercing . | . . . . Sneak Attacks . | . . . . Combat Hostiles . | . . . . Follow-up Attacks . | . . . . Damage Inflicted 3951 | . 873 886 2192 Guns 2360 | . 408 652 1300 Cannons . | . . . . Explosions 1546 | . 465 234 847 Melee 45 | . . . 45 Ramming . | . . . . Kinetic 1434 | . 395 508 531 Thermal 767 | . . 144 623 Explosive 1518 | . 465 234 819 Electromagnetic 187 | . 13 . 174 Impact 45 | . . . 45 Slashing . | . . . . Piercing . | . . . . Highest Corruption . | . . . . Average Corruption . | . . . . Corruption Purged . | . . . . Corruption Blocked . | . . . . Overload Shots . | . . . . Overflow Damage 115 | . 11 36 68 Projectiles . | . . . . Explosions 80 | . 11 36 33 Melee 35 | . . . 35 Knockbacks . | . . . . Impact . | . . . . Kinetic . | . . . . Secondary . | . . . . Self-Inflicted Damage 153 | . 1 90 62 Shots 7 | . 1 4 2 Rammed . | . . . . Targets Rammed . | . . . . Kicked . | . . . . Crushed . | . . . . Highest Temperature 156 | . 22 144 156 Average Temperature 47 | . 10 50 47 Received Heat Transfer 675 | . 261 126 288 Siege Activations . | . . . . Martial Activations . | . . . . Shielding Activations . | . . . . Robots Disrupted . | . . . . Combat Hostiles . | . . . . Robots Corrupted 1 | . . . 1 Combat Hostiles 1 | . . . 1 Parts Fried . | . . . . Impact Corruptions 1 | . . . 1 Robots Melted . | . . . . Combat Hostiles . | . . . . Parts Melted . | . . . . Heat Transferred 2035 | . . 370 1665 Parts Sabotaged . | . . . . Parts Stolen . | . . . . Parts Stripped . | . . . . Power Chain Reactions 1 | . . . 1 Alert | -11 -10 -10 -9 ------- Run | Yrd Mat Min Mat Maximum Alert Level 2 | . 1 . 2 Low Security (%) 85 | 100 87 100 52 Level 1 7 | . 12 . 17 Level 2 7 | . . . 29 Level 3 . | . . . . Level 4 . | . . . . Level 5 . | . . . . High Security . | . . . . Max Security . | . . . . Peak Influence 545 | . 234 159 545 Initial 69 | . . 69 19 Average 99 | . 87 39 235 Influence Increases 1865 | . 392 439 1034 Destroy 0b10 Robot/C 1100 | . 220 320 560 Destroy 0b10 Robot/NC 70 | . . 25 45 Destroy Leader 228 | . 50 40 138 Successful Hack 9 | . 5 . 4 Disable Machine 75 | . 45 . 30 Destroy Structure 173 | . 57 24 92 Lose Combat Pursuer 210 | . 15 30 165 Influence Decreases 1332 | . 214 566 552 Entered New Map 141 | . . 109 32 Time Decay 991 | . 214 437 340 Lost Part 50 | . . 20 30 Purge Threat 150 | . . . 150 Squads Dispatched 6 | . 1 . 5 Investigation 3 | . . . 3 Extermination . | . . . . Reinforcement 3 | . 1 . 2 Assault . | . . . . Garrison . | . . . . Intercept . | . . . . Searches Triggered . | . . . . Construction Impeded . | . . . . Haulers Reinforced . | . . . . Active Scanning Responses . | . . . . Cargo Convoy Interrupts . | . . . . Stealth | -11 -10 -10 -9 --------- Run | Yrd Mat Min Mat Distress Signals 5 | . 1 . 4 Communications Jammed . | . . . . Distress Signals . | . . . . Times Spotted 83 | . 19 19 45 Peak Tracking Total 9 | . 5 3 9 Tactical Retreats 7 | . 1 2 4 Traps | -11 -10 -10 -9 ------- Run | Yrd Mat Min Mat Traps Triggered 1 | . . . 1 Indirectly . | . . . . Trap Hack Attempts . | . . . . Triggered . | . . . . Disarmed . | . . . . Reprogrammed . | . . . . Reused . | . . . . Traps Extracted . | . . . . Installed . | . . . . Triggered . | . . . . Machines | -11 -10 -10 -9 ---------- Run | Yrd Mat Min Mat Machines Disabled 5 | . 3 . 2 Max in Single Turn 2 | . 2 . 1 Machines Repaired . | . . . . Machines Dismantled . | . . . . Machines Sabotaged . | . . . . Overloaded Fab Kills . | . . . . Hacking | -11 -10 -10 -9 --------- Run | Yrd Mat Min Mat Machines Accessed 8 | . 5 1 2 Terminals 7 | . 5 . 2 Fabricators . | . . . . Repair Stations . | . . . . Recycling Units . | . . . . Scanalyzers . | . . . . Garrison Access . | . . . . Total Hacks 28 | . 16 1 11 Successful 13 | . 8 1 4 Failed 15 | . 8 . 7 Catastrophic 1 | . . . 1 Database Lockouts . | . . . . Manual . | . . . . Terminals 27 | . 16 . 11 Fabricators . | . . . . Repair Stations . | . . . . Recycling Units . | . . . . Scanalyzers . | . . . . Garrison Access . | . . . . Terminal Hacks 13 | . 8 1 4 Record 1 | . 1 . . Robot Analysis 1 | . 1 . . Open Door 1 | . . 1 . Emergency Access Points 1 | . . . 1 Alert Level 3 | . 2 . 1 Unreport Threat 1 | . . . 1 Locate Traps 1 | . 1 . . Dispatch Records 1 | . 1 . . Maintenance Status 2 | . 1 . 1 Zone Layout 1 | . 1 . . Fabricator Hacks . | . . . . Repair Station Hacks . | . . . . Recycling Unit Hacks . | . . . . Scanalyzer . | . . . . Garrison Access Hacks . | . . . . Unauthorized Hacks . | . . . . Terminals . | . . . . Fabricators . | . . . . Repair Stations . | . . . . Recycling Units . | . . . . Scanalyzers . | . . . . Garrison Access . | . . . . Data Cores Recovered . | . . . . Used . | . . . . Hacking Detections 5 | . 3 . 2 Full Trace Events 2 | . . . 2 Feedback Events . | . . . . Feedback Blocked . | . . . . Robot Schematics Acquired . | . . . . Robots Built . | . . . . Authchips . | . . . . Time . | . . . . Total Robot Build Rating . | . . . . Part Schematics Acquired . | . . . . Parts Built . | . . . . Authchips . | . . . . Time . | . . . . Total Part Build Rating . | . . . . Parts Repaired . | . . . . Time . | . . . . Parts Recycled . | . . . . Recycled Matter . | . . . . Retrieved Matter . | . . . . Retrieved Components . | . . . . Parts Scanalyzed . | . . . . Part Schematics Acquired . | . . . . Parts Damaged . | . . . . Bothacking | -11 -10 -10 -9 ------------ Run | Yrd Mat Min Mat Used RIF Installer . | . . . . Robots Hacked . | . . . . Non-combat . | . . . . Combat . | . . . . Robot Hacks Applied . | . . . . Relay Couplers Released . | . . . . Fabnet Peak Effective % . | . . . . Robots Rewired . | . . . . Allies Hacked . | . . . . Hacks Repelled . | . . . . Allies | -11 -10 -10 -9 -------- Run | Yrd Mat Min Mat Total Allies . | . . . . Largest Group . | . . . . Highest-Rated Group . | . . . . Highest-Rated Ally . | . . . . Total Orders . | . . . . Ally Attacks . | . . . . Total Damage . | . . . . Kills . | . . . . Allies Corrupted . | . . . . Allies Melted . | . . . . Intel | -11 -10 -10 -9 ------- Run | Yrd Mat Min Mat Active Infowar (turns) 2383 | . 421 1445 517 Terrain 1699 | . . 1182 517 Seismic 684 | . 421 263 . Robot Analysis Total 1 | . 1 . . Derelict Logs Recovered 3 | . . 3 . Drone Launches . | . . . . Drone Recoveries . | . . . . Exploration | -11 -10 -10 -9 ------------- Run | Yrd Mat Min Mat Turns Passed 3827 | 75 748 1997 1007 Spaces Moved 1832 | 53 466 755 558 Core 4 | 4 . . . Treads . | . . . . Legs 1828 | 49 466 755 558 Wheels . | . . . . Hover . | . . . . Flight . | . . . . Fastest Speed 50 | 50 120 190 120 Average Speed 149 | 114 121 190 120 Slowest Speed 190 | 120 190 190 190 Overloaded Moves . | . . . . Propulsion Burnouts . | . . . . Robots Hopped . | . . . . Potential Cave-ins . | . . . . Cave-ins Triggered . | . . . . Exploration Rate (%) 55 | 4 83 92 44 Regions Visited 3 Branch Regions 1 Pre-discovered Areas 1 | . . 1 . Known Exits Taken . | . . . . Unknown Exits Taken 3 | 1 1 1 . Scrap Searched 3 | . . 3 . Spaces Dug 19 | . 19 . . Terrain Destroyed 197 | . 63 26 108 Melee . | . . . . Projectile . | . . . . AOE 197 | . 63 26 108 Terrain Rammed . | . . . . Walls Destroyed . | . . . . Machines Disabled . | . . . . Actions | -11 -10 -10 -9 --------- Run | Yrd Mat Min Mat Total 2637 | 64 593 1220 760 Wait 441 | . 44 356 41 Move 1829 | 52 465 754 558 Hop . | . . . . Pick Up 61 | 6 15 18 22 Fast Attach 22 | 6 6 1 9 Attach 10 | . . 5 5 Detach 6 | . 1 2 3 Swap 44 | . 12 12 20 Drop 53 | . 17 13 23 Fire 166 | . 33 57 76 Melee 5 | . . 2 3 Ram . | . . . . Kick . | . . . . Crush . | . . . . Escape Stasis . | . . . . Rewire . | . . . . Trap . | . . . . Miscellaneous . | . . . . Route ------- -11/Scrapyard -10/Materials (discovered 5 exits: *Mat x3 / *Min x2) -10/Mines (discovered 3 exits: *Mat x2 / *Sub) -9/Materials (discovered 1 exit: [*Mat]) History --------- Turn | Location | Event 5 | -11/Scrapyard | Discovered new exit (range 16) 76 | -11/Scrapyard | Entered Materials 195 | -10/Materials | Discovered new exit (range 15) 243 | -10/Materials | Discovered new exit (range 15) 300 | -10/Materials | Build established: Mutant 351 | -10/Materials | Discovered new exit (range 16) 522 | -10/Materials | Discovered new exit (range 16) 794 | -10/Materials | Discovered new exit (range 11) 824 | -10/Materials | Entered Mines 855 | -10/Mines | Learned location of Storage (-7) 897 | -10/Mines | Discovered new exit (range 8) 918 | -10/Mines | YI-UF0 nonchalantly dropped a Grenade Launcher on the ground 1077 | -10/Mines | Excavation squad dispatched 1077 | -10/Mines | A large section of the Mines collapsed 1327 | -10/Mines | Excavation squad dispatched 1549 | -10/Mines | Core integrity fell below 50% 1861 | -10/Mines | Discovered new exit (range 12) 2148 | -10/Mines | Identified exit to Subcaves 2215 | -10/Mines | Found the Drone Emporium 2232 | -10/Mines | Found Prototype Device 2362 | -10/Mines | A weapon hastily lodged in a ceiling crevice suddenly fell to the ground 2659 | -10/Mines | Build established: Scavenger-Mutant 2821 | -10/Mines | Entered Materials 2821 | -9/Materials | Evolved 2 slots: Propulsion x2 3584 | -9/Materials | Destroyed 8 combat bots 3812 | -9/Materials | Discovered new exit (range 10) 3828 | -9/Materials | Self-destructed Last Messages --------------- 03763_ K-01 Serf destroyed. 03764_ K-01 Serf collects debris. 03779_ Critical hit (Burn: +37). 03781_ Chain reaction triggered in Imp. Ion Engine. 03781_ Y-45 Defender destroyed. 03781_ Atomic Centrifuge disabled. 03781_ R-06 Scavenger collects Corrupted Lgt. Treads. 03782_ U-05 Engineer lays Concrete. 03784_ U-05 Engineer builds a Wall. 03785_ K-01 Serf collects debris. 03785_ R-06 Scavenger collects Med. Matter Pod. 03788_ U-05 Engineer builds a Door. 03789_ K-01 Serf collects debris. 03789_ R-06 Scavenger collects Lgt. Treads. 03792_ K-01 Serf collects debris. 03793_ R-06 Scavenger collects Wheel. 03795_ K-01 Serf collects debris. 03812_ EXIT=FOUND Map ----- +----------------------------------------------------+ | | | | | | | | | | | | | | | | | | | | | | | ?????????????????????????????????????????????????? | | ?????????????????????????????????????????????????? | | ?????????????????????????????????????????????????? | | ?????????????????????????????????????????????????? | | ?????????????????????????????????????????????????? | | ?????????????????????????????????????????????????? | | ?????????????????###?????????????????????????????? | | ???????????????### ?????????????????????????????? | | ???????????????? ! ?????????????????????????????? | | ????????????????? ?????????????????????????????? | | ?????????????????? ????????????????????????????? | | ??????????????????# ????????????????????????????? | | ??????????????????# ??????????####??????????????? | | ??????????????????+ k########## #??????????????? | | ??????????????????# @ < #??????????????? | | ??????????????????+ #??????????????? | | ??????????????????# ###????????????? | | ??????????????????# ??????????? | | ??????????????????+ ?????????? | | ??????????????????#### ##### """??????????? | | ?????????????????????# #????? ""???????????? | | ?????????????????????# #?????? "????????????? | | ?????????????????????#+## #??????? "????????????? | | ????????????????????????# #???????? "????????????? | | ????????????????????????# #????????? ????????????? | | ????????????????????????# #??????????????????????? | | ????????????????????????# #??????????????????????? | | ????????????????????????# #??????????????????????? | | ????????????????????????# #??????????????????????? | | ????????????????????????# #??????????????????????? | | ????????????????????????# #??????? ?""???????????? | | ????????????????????????# #?????? ???????????? | | ?????????????????????####+#####?? ????????????? | | ?????????????????????# #? ?????????????? | | ?????????????????????# """ #? ??????????????? | | ?????????????????????# """ # ???????????????? | | ?????????????????????# """ # ????????????????? | | ????????????????????## !! + ?????????????????? | | ????????????????????# "" !! #??????????????????? | +----------------------------------------------------+ Best States ------------- Heat Dissipation 28 Energy Generation 10 Energy Capacity 125 Matter Stores 300 Matter Capacity 300 Sight Range 16 Terrain Scan Range 16 Terrain Scan Density 10 Armor Coverage 150 Evasion (%) 55 Item Schematics ----------------- None Robot Schematics ------------------ None Fabricated ------------ Nothing Repaired ---------- Nothing Alien Tech Used ----------------- None Achievements -------------- Party Time Challenges ------------ None Game ------ Seed ConstructResetCycler Manual? 0 Play Time 00:31:29 Cumulative 5.5 hours Start 2025.07.23 @ 18:09:30 End 2025.07.25 @ 13:16:19 Sessions 3 Manual Loads 0 Difficulty Rogue Special Mode None Game No. 11 Rogue 11 Adventurer 0 Explorer 0 Win Type - Total 0 Types 0/0/0/0/0/0/0/0/0/0 Lore% 10 Gallery% 11 Achievement% 10 Wizard Run 0 Options --------- Layout 1 ASCII 0 Keyboard 0 Movement Numpad Keybinds 0 Fullscreen 2 Font 24/Smallcaps Map View 50x35 Zoom Use 0% Tactical HUD 1 Map Filters NONE Filters NONE Steam 1 RUN: e67fcebe-c3a1-4732-8dd5-15bb2e97cc80